Workbook

Sheet паспорт
A1: ПАТ "УКРТРАНСГАЗ" | G1: ПАСПОРТ ФІЗИКО-ХІМІЧНИХ ПОКАЗНИКІВ ПРИРОДНОГО ГАЗУ № 672
A2: Філія "УМГ "ХАРКІВТРАНСГАЗ" | G2: переданого Харківським ЛВУМГ та прийнятого ПАТ "Харківгаз"
A3: Харківський п/м Харківського ЛВУМГ | G3: Маршрут № 672
A4: Вимірювальна хіміко-аналітична лабораторія
A5: Свідоцтво про атестацію № 100-359/2015 чинне до 20.12.18 р. | K5: з газопроводу ШХ | V5: за період з | X5: 01.02.2017 р. | Z5: по | AA5: 28.02.2017 р.
A7: Число місяця | B7: Компонентний склад, мол. % | N7: Фізико-хімічні показники газу обчислені на основі компонентного складу, 101,325 кПа | X7: Температура точки роси за вологою (Р = 3.92 МПа), °С | Y7: Температура точки роси за вуглеводнями, °С | Z7: Вміст сірководню, г/м3 | AA7: Вміст меркаптанової сірки, г/м3 | AB7: Вміст механічних домішок, г/м3
N8: Густина абсолютна, кг/м3,при 20 °С, | O8: Температура вимірювання/згоряння при 20/25°С
B9: метан, С1 | C9: етан, С2 | D9: пропан, С3 | E9: ізо-бутан, і-С4 | F9: н-бутан, н-С4 | G9: нео-пентан, нео-С5 | H9: ізо-пентан, і-С5 | I9: н-пентан, н-С5 | J9: гексани та вищі, С6+ | K9: кисень, О2 | L9: азот, N2 | M9: діоксид вуглецю, CО2 | O9: Теплота згоряння нижча | R9: Теплота згоряння вища | U9: Число Воббе вище
O10: ккал/м³ | P10: МДж/м³ | Q10: кВт⋅год/м³ | R10: ккал/м³ | S10: МДж/м³ | T10: кВт⋅год/м³ | U10: ккал/м³ | V10: МДж/м³ | W10: кВт⋅год/м³
A11: 1 | O11: =P11*238.8459 -> 7948.791552 | P11: 33.28 | Q11: =P11/3.6 -> 9.244444444 | R11: =S11*238.8459 -> 8799.082956 | S11: 36.84 | T11: =S11/3.6 -> 10.23333333 | U11: =V11*238.8459 -> 10996.46524 | V11: 46.04 | W11: =V11/3.6 -> 12.78888889 | AC11: =SUM(B11:M11)+$K$42+$N$42 -> 0
A12: 2 | B12: 87.2875 | C12: 3.7165 | D12: 1.1782 | E12: 0.1581 | F12: 0.2672 | G12: 0.0031 | H12: 0.0834 | I12: 0.0729 | J12: 0.1024 | K12: 0.0348 | L12: 4.5882 | M12: 2.5076 | N12: 0.7704 | O12: =P12*238.8459 -> 7943.011481 | P12: 33.2558 | Q12: 9.237722222 | R12: =S12*238.8459 -> 8793.756692 | S12: 36.8177 | T12: =S12/3.6 -> 10.22713889 | U12: =V12*238.8459 -> 10995.4382 | V12: 46.0357 | W12: =V12/3.6 -> 12.78769444 | X12: -8.2 | Y12: -1.9 | Z12: 0.0014 | AA12: 0.0002 | AB12: відсутні | AC12: 99.9999
A13: 3 | O13: 7943.011481 | P13: 33.2558 | Q13: 9.237722222 | R13: 8793.756692 | S13: 36.8177 | T13: 10.22713889 | U13: 10995.4382 | V13: 46.0357 | W13: =V13/3.6 -> 12.78769444 | AC13: 0 | AD13: =IF(AC13=100,"ОК"," ") -> 
A14: 4 | O14: 7943.011481 | P14: 33.2558 | Q14: 9.237722222 | R14: 8793.756692 | S14: 36.8177 | T14: 10.22713889 | U14: 10995.4382 | V14: 46.0357 | W14: 12.78769444 | AC14: 0 | AD14: =IF(AC14=100,"ОК"," ") -> 
A15: 5 | O15: 7943.011481 | P15: 33.2558 | Q15: 9.237722222 | R15: 8793.756692 | S15: 36.8177 | T15: 10.22713889 | U15: 10995.4382 | V15: 46.0357 | W15: 12.78769444 | AC15: 0
A16: 6 | O16: 7943.011481 | P16: 33.2558 | Q16: 9.237722222 | R16: 8793.756692 | S16: 36.8177 | T16: 10.22713889 | U16: 10995.4382 | V16: 46.0357 | W16: 12.78769444 | AC16: 0
A17: 7 | O17: 7943.011481 | P17: 33.2558 | Q17: 9.237722222 | R17: 8793.756692 | S17: 36.8177 | T17: 10.22713889 | U17: 10995.4382 | V17: 46.0357 | W17: 12.78769444 | AC17: 0
A18: 8 | B18: 87.2202 | C18: 3.7348 | D18: 1.1839 | E18: 0.1594 | F18: 0.2697 | G18: 0.0032 | H18: 0.0853 | I18: 0.0759 | J18: 0.1181 | K18: 0.0353 | L18: 4.5945 | M18: 2.5198 | N18: 0.7714 | O18: 7950.105204 | P18: 33.2855 | Q18: 9.245972222 | R18: 8801.304223 | S18: 36.8493 | T18: 10.23591667 | U18: 10997.77889 | V18: 46.0455 | W18: 12.79041667 | X18: -8.7 | Y18: -2.4 | AC18: 100.0001
A19: 9 | O19: 7950.105204 | P19: 33.2855 | Q19: 9.245972222 | R19: 8801.304223 | S19: 36.8493 | T19: 10.23591667 | U19: 10997.77889 | V19: 46.0455 | W19: 12.79041667 | AC19: 0
A20: 10 | O20: 7950.105204 | P20: 33.2855 | Q20: =P20/3.6 -> 9.245972222 | R20: 8801.304223 | S20: 36.8493 | T20: =S20/3.6 -> 10.23591667 | U20: 10997.77889 | V20: 46.0455 | W20: 12.79041667 | AC20: 0
A21: 11 | O21: 7950.105204 | P21: 33.2855 | Q21: 9.245972222 | R21: 8801.304223 | S21: 36.8493 | T21: 10.23591667 | U21: 10997.77889 | V21: 46.0455 | W21: 12.79041667 | AC21: 0
A22: 12 | O22: 7950.105204 | P22: 33.2855 | Q22: 9.245972222 | R22: 8801.304223 | S22: 36.8493 | T22: 10.23591667 | U22: 10997.77889 | V22: 46.0455 | W22: 12.79041667 | AC22: 0
A23: 13 | O23: 7950.105204 | P23: 33.2855 | Q23: 9.245972222 | R23: 8801.304223 | S23: 36.8493 | T23: 10.23591667 | U23: 10997.77889 | V23: 46.0455 | W23: 12.79041667 | AC23: 0
A24: 14 | O24: 7950.105204 | P24: 33.2855 | Q24: 9.245972222 | R24: 8801.304223 | S24: 36.8493 | T24: 10.23591667 | U24: 10997.77889 | V24: 46.0455 | W24: 12.79041667 | AC24: 0
A25: 15 | O25: 7950.105204 | P25: 33.2855 | Q25: 9.245972222 | R25: 8801.304223 | S25: 36.8493 | T25: 10.23591667 | U25: 10997.77889 | V25: 46.0455 | W25: 12.79041667 | AC25: 0
A26: 16 | B26: 87.3065 | C26: 3.7143 | D26: 1.181 | E26: 0.1579 | F26: 0.2667 | G26: 0.0032 | H26: 0.0831 | I26: 0.0733 | J26: 0.1049 | K26: 0.0333 | L26: 4.5711 | M26: 2.5047 | N26: 0.7703 | O26: 7945.614902 | P26: 33.2667 | Q26: =P26/3.6 -> 9.24075 | R26: 8796.598959 | S26: 36.8296 | T26: =S26/3.6 -> 10.23044444 | U26: 10999.3075 | V26: 46.0519 | W26: 12.79219444 | X26: -8.1 | Y26: -1.4 | Z26: 0.0015 | AA26: 0.0002 | AB26: відсутні | AC26: 100 | AD26: ОК
A27: 17 | O27: 7945.614902 | P27: 33.2667 | Q27: 9.24075 | R27: 8796.598959 | S27: 36.8296 | T27: 10.23044444 | U27: 10999.3075 | V27: 46.0519 | W27: 12.79219444 | AC27: 0
A28: 18 | O28: 7945.614902 | P28: 33.2667 | Q28: 9.24075 | R28: 8796.598959 | S28: 36.8296 | T28: 10.23044444 | U28: 10999.3075 | V28: 46.0519 | W28: 12.79219444 | AC28: 0
A29: 19 | O29: 7945.614902 | P29: 33.2667 | Q29: 9.24075 | R29: 8796.598959 | S29: 36.8296 | T29: 10.23044444 | U29: 10999.3075 | V29: 46.0519 | W29: 12.79219444 | AC29: 0
A30: 20 | O30: 7945.614902 | P30: 33.2667 | Q30: 9.24075 | R30: 8796.598959 | S30: 36.8296 | T30: 10.23044444 | U30: 10999.3075 | V30: 46.0519 | W30: 12.79219444 | AC30: 0 | AD30: =IF(AC30=100,"ОК"," ") -> 
A31: 21 | O31: 7945.614902 | P31: 33.2667 | Q31: 9.24075 | R31: 8796.598959 | S31: 36.8296 | T31: 10.23044444 | U31: 10999.3075 | V31: 46.0519 | W31: 12.79219444 | AC31: 0
A32: 22 | B32: 87.2905 | C32: 3.7245 | D32: 1.1765 | E32: 0.1567 | F32: 0.2623 | G32: 0.0031 | H32: 0.0802 | I32: 0.0686 | J32: 0.0942 | K32: 0.0319 | L32: 4.6006 | M32: 2.5109 | N32: 0.77 | O32: 7936.705949 | P32: 33.2294 | Q32: 9.230388889 | R32: 8786.973469 | S32: 36.7893 | T32: 10.21925 | U32: 10989.94474 | V32: 46.0127 | W32: 12.78130556 | X32: -8.4 | Y32: -2.1 | AC32: 100 | AD32: ОК
A33: 23 | O33: 7936.705949 | P33: 33.2294 | Q33: =P33/3.6 -> 9.230388889 | R33: 8786.973469 | S33: 36.7893 | T33: =S33/3.6 -> 10.21925 | U33: 10989.94474 | V33: 46.0127 | W33: 12.78130556 | AC33: 0 | AD33: =IF(AC33=100,"ОК"," ") -> 
A34: 24 | O34: 7936.705949 | P34: 33.2294 | Q34: 9.230388889 | R34: 8786.973469 | S34: 36.7893 | T34: 10.21925 | U34: 10989.94474 | V34: 46.0127 | W34: 12.78130556 | AC34: 0
A35: 25 | O35: 7936.705949 | P35: 33.2294 | Q35: 9.230388889 | R35: 8786.973469 | S35: 36.7893 | T35: 10.21925 | U35: 10989.94474 | V35: 46.0127 | W35: 12.78130556 | AC35: 0
A36: 26 | O36: 7936.705949 | P36: 33.2294 | Q36: 9.230388889 | R36: 8786.973469 | S36: 36.7893 | T36: =S36/3.6 -> 10.21925 | U36: 10989.94474 | V36: 46.0127 | W36: 12.78130556 | AC36: 0
A37: 27 | O37: 7936.705949 | P37: 33.2294 | Q37: 9.230388889 | R37: 8786.973469 | S37: 36.7893 | T37: 10.21925 | U37: 10989.94474 | V37: 46.0127 | W37: 12.78130556 | AC37: 0
A38: 28 | O38: 7936.705949 | P38: 33.2294 | Q38: 9.230388889 | R38: 8786.973469 | S38: 36.7893 | T38: 10.21925 | U38: 10989.94474 | V38: 46.0127 | W38: 12.78130556 | AC38: 0
A39: 29 | O39: 7936.705949 | P39: 33.2294 | Q39: =P39/3.6 -> 9.230388889 | R39: 8786.973469 | S39: 36.7893 | T39: =S39/3.6 -> 10.21925 | U39: 10989.94474 | V39: 46.0127 | W39: 12.78130556 | AC39: 0
A40: 30 | O40: 7936.705949 | P40: 33.2294 | Q40: =P40/3.6 -> 9.230388889 | R40: 8786.973469 | S40: 36.7893 | T40: =S40/3.6 -> 10.21925 | U40: 10989.94474 | V40: 46.0127 | W40: 12.78130556 | AC40: 0
A41: 31 | O41: 7936.849257 | P41: 33.23 | Q41: =P41/3.6 -> 9.230555556 | R41: 8787.140661 | S41: 36.79 | T41: =S41/3.6 -> 10.21944444 | U41: 10989.29986 | V41: 46.01 | W41: 12.78055556 | AC41: 0
A42: Рівень одоризації відповідає чинним нормативним документам | O42: 7943.859106 | P42: 33.25934884 | Q42: 9.23870801 | R42: 8794.589883 | S42: 36.8211884 | T42: 10.22810789
H43: Середньозважене значення теплоти згоряння:
B46: В.о. Начальника Харківського ЛВУМГ Моторя О.А. 01.03.2017
C47: Підрозділу підприємства, якому підпорядкована лабораторія | O47: прізвище | R47: підпис | V47: дата
B48: Завідувач лабораторії Харківського п/м Харківського ЛВУМГ Крупчицький Д.О. 01.03.2017
C49: Лабораторія, де здійснювалось вимірювання газу | O49: прізвище | R49: підпис | V49: дата
B50: Начальник служби ГВ та М Щербак С.О. 01.03.2017
C51: Підрозділу, відповідального за облік газу за маршрутом | O51: прізвище | R51: підпис | V51: дата

Sheet додаток
A2: Додаток до Паспорту фізико-хімічних показників природного газу №672
A4: Область | B4: ГРС, прямий споживач | C4: Cередньозважене значення вищої теплоти згоряння
C5: МДж/м³ | D5: ккал/м³ | E5: кВт*год./м³
A6: Харківська область | B6: ='[1] розрахунок'!C6 -> ГРС-1 м. Чугуїв ПАТ "Харківгаз" с. Есхар | C6: 36.82522691 | D6: 8795.554464 | E6: 10.2292297
B7: ='[1] розрахунок'!D6 -> ГРС-1 м. Чугуїв ПАТ "Харківгаз" Тепличний комбінат | C7: 36.81616106 | D7: 8793.389124 | E7: 10.22671141
B8: ='[1] розрахунок'!E6 -> ГРС-1 м. Чугуїв ПАТ "Харківгаз" ТЕЦ-2 Есхар | C8: 36.82196689 | D8: 8794.775821 | E8: 10.22832414
A9: Середньозважене значення вищої теплоти згоряння по маршруту № 672 | C9: 36.8211884 | D9: 8794.589883 | E9: 10.22810789
A13: В.о. Начальника Харківського ЛВУМГ Моторя О.А. 01.03.2017
A14: Підрозділу підприємства, якому підпорядкована лабораторія | D14: прізвище | E14: підпис | F14: дата
A15: Завідувач лабораторії Харківського п/м Харківського ЛВУМГ Крупчицький Д.О. 01.03.2017
A16: Лабораторія, де здійснювалось вимірювання газу | D16: прізвище | E16: підпис | F16: дата
A17: Начальник служби ГВ та М Щербак С.О. 01.03.2017
A18: Підрозділу, відповідального за облік газу за маршрутом | D18: прізвище | E18: підпис | F18: дата

Sheet variablesList (hidden)
A1: 3 | B1: x:\gaysin | C1: 10, 11, 24, 25, 127, 128, 132, 180, 207, 215 | D1: x:\
B2: x:\Illinci
B3: x:\Talne
